[Event "Nakhchivan Open 2024"]
[Site "Nakhchivan"]
[Date "2024.01.10"]
[Round "1.1"]
[White "Mahmudov, Ilham"]
[Black "Gasimov, Parviz"]
[Result "0-1"]
[ECO "A46"]
[WhiteElo "1226"]
[BlackElo "2362"]
[Annotator "RC"]
[PlyCount "66"]
[EventDate "2024.01.11"]
[EventType "swiss"]
[EventCountry "AZE"]
[SourceTitle "playchess.com"]
[Source "ChessBase"]
[SourceQuality "1"]
[TimeControl "5400+30"]

1. d4 {[%emt 0:00:30]} Nf6 {[%emt 0:00:06]} 2. Nf3 {[%emt 0:00:02]} e6 {[%emt 0:00:50]} 3. e3 {[%emt 0:00:48]} c5 {[%emt 0:01:29]} 4. b3 {[%emt 0:01:53]} d5 {[%emt 0:02:50]} 5. Bb2 {[%emt 0:00:49]} Nc6 {[%emt 0:00:09]} 6. Nbd2 {[%emt 0:01:45]} Bd6 {[%emt 0:04:39]} 7. Ne5 {[%emt 0:04:30]} Qb6 {[%emt 0:04:47]} 8. Nxc6 {[%emt 0:04:51]} bxc6 {[%emt 0:00:22]} 9. c4 {[%emt 0:00:42]} cxd4 {[%emt 0:09:33]} 10. exd4 {[%emt 0:05:10]} Qc7 {[%emt 0:14:38]} 11. Nf3 {[%emt 0:04:46]} Bb4+ {[%emt 0:01:10]} 12. Nd2 {[%emt 0:00:53]} Ne4 {[%emt 0:03:41]} 13. Bc1 {[%emt 0:00:55]} Bc3 {[%emt 0:03:46]} 14. cxd5 {[%emt 0:02:07]} Nxd2 {[%emt 0:04:13]} 15. Bxd2 {[%emt 0:00:16]} Bxa1 {[%emt 0:00:04]} 16. Qxa1 {[%emt 0:00:19]} cxd5 {[%emt 0:00:08]} 17. Bb5+ {[%emt 0:00:30]} Bd7 {[%emt 0:00:06]} 18. Bxd7+ {[%emt 0:00:44]} Qxd7 {[%emt 0:00:05]} 19. Bb4 {[%emt 0:00:18]} Qb5 {[%emt 0:00:44]} 20. Qc3 {[%emt 0:01:04]} a5 {[%emt 0:00:19]} 21. Ba3 {[%emt 0:00:25]} a4 {[%emt 0:01:28]} 22. Bc5 {[%emt 0:02:51]} axb3 {[%emt 0:00:07]} 23. axb3 {[%emt 0:00:11]} Ra2 {[%emt 0:00:07]} 24. Qe3 {[%emt 0:02:01]} Ra1+ {[%emt 0:00:11]} 25. Kd2 {[%emt 0:00:30]} Qa5+ {[%emt 0:02:22]} 26. Ke2 {[%emt 0:00:37]} Rxh1 {[%emt 0:00:44]} 27. Qg5 {[%emt 0:00:50]} Qe1+ {[%emt 0:00:21]} 28. Kf3 {[%emt 0:00:34]} Qe4+ {[%emt 0:00:08]} 29. Kg3 {[%emt 0:00:32]} Qg6 {[%emt 0:00:06]} 30. Qxg6 {[%emt 0:00:13]} hxg6 {[%emt 0:00:01]} 31. b4 {[%emt 0:00:35]} g5 {[%emt 0:00:14]} 32. b5 {[%emt 0:00:12]} f5 {[%emt 0:00:05]} 33. b6 {[%emt 0:00:18]} Kd7 {[%emt 0:00:05]} 0-1

[Event "Nakhchivan Open 2024"]
[Site "Nakhchivan"]
[Date "2024.01.10"]
[Round "1.2"]
[White "Hasanzade, Toghrul"]
[Black "Bunyadov, Ahmad"]
[Result "1-0"]
[ECO "A05"]
[WhiteElo "2329"]
[BlackElo "1243"]
[Annotator "RC"]
[PlyCount "75"]
[EventDate "2024.01.11"]
[EventType "swiss"]
[EventCountry "AZE"]
[SourceTitle "playchess.com"]
[Source "ChessBase"]
[SourceQuality "1"]
[TimeControl "5400+30"]

1. Nf3 {[%emt 0:00:17]} Nf6 {[%emt 0:00:27]} 2. g3 {[%emt 0:00:10]} g6 {[%emt 0:00:15]} 3. Bg2 {[%emt 0:00:06]} Bg7 {[%emt 0:00:12]} 4. O-O {[%emt 0:00:10]} O-O {[%emt 0:00:22]} 5. d4 {[%emt 0:00:05]} e6 {[%emt 0:00:25]} 6. c4 {[%emt 0:00:09]} b6 {[%emt 0:00:38]} 7. Ne5 {[%emt 0:00:28]} d5 {[%emt 0:00:34]} 8. Nc3 {[%emt 0:00:18]} c6 {[%emt 0:00:38]} 9. e4 {[%emt 0:02:09]} Bb7 {[%emt 0:00:57]} 10. Be3 {[%emt 0:06:55]} a6 {[%emt 0:01:58]} 11. b3 {[%emt 0:01:24]} Ra7 {[%emt 0:04:06]} 12. Qe2 {[%emt 0:04:52]} Qe7 {[%emt 0:01:41]} 13. Bg5 {[%emt 0:00:42]} Qb4 {[%emt 0:01:28]} 14. Rac1 {[%emt 0:01:18]} b5 {[%emt 0:02:18]} 15. Nd3 {[%emt 0:02:39]} Qa5 {[%emt 0:01:05]} 16. Nc5 {[%emt 0:02:09]} Ba8 {[%emt 0:01:40]} 17. Rfd1 {[%emt 0:01:02]} Qb6 {[%emt 0:01:14]} 18. cxd5 {[%emt 0:00:29]} exd5 {[%emt 0:01:50]} 19. Bxf6 {[%emt 0:03:54]} Bxf6 {[%emt 0:00:53]} 20. exd5 {[%emt 0:00:06]} Bxd4 {[%emt 0:02:12]} 21. Rxd4 {[%emt 0:00:49]} Qxc5 {[%emt 0:00:33]} 22. Rdd1 {[%emt 0:00:07]} Qb6 {[%emt 0:00:54]} 23. dxc6 {[%emt 0:00:51]} Nxc6 {[%emt 0:02:55]} 24. Nd5 {[%emt 0:00:39]} Nd4 {[%emt 0:02:10]} 25. Qe3 {[%emt 0:00:45]} Bxd5 {[%emt 0:06:49]} 26. Bxd5 {[%emt 0:00:05]} Rd8 {[%emt 0:00:07]} 27. Qxd4 {[%emt 0:00:25]} Qxd4 {[%emt 0:00:14]} 28. Rxd4 {[%emt 0:00:03]} Rad7 {[%emt 0:00:19]} 29. Rcd1 {[%emt 0:00:06]} Kg7 {[%emt 0:00:29]} 30. f4 {[%emt 0:00:17]} Kf6 {[%emt 0:00:29]} 31. Kf2 {[%emt 0:00:11]} g5 {[%emt 0:00:48]} 32. R4d3 {[%emt 0:00:27]} h6 {[%emt 0:01:08]} 33. Be4 {[%emt 0:00:07]} Rxd3 {[%emt 0:00:41]} 34. Rxd3 {[%emt 0:00:02]} Rxd3 {[%emt 0:00:13]} 35. Bxd3 {[%emt 0:00:05]} Ke6 {[%emt 0:00:33]} 36. Ke3 {[%emt 0:00:09]} f6 {[%emt 0:00:55]} 37. Kd4 {[%emt 0:00:01]} Kd6 {[%emt 0:00:20]} 38. b4 {[%emt 0:00:00]} 1-0

[Event "Nakhchivan Open 2024"]
[Site "Nakhchivan"]
[Date "2024.01.10"]
[Round "1.3"]
[White "Mustafayev, Habib"]
[Black "Kul, Ozdemir Efe"]
[Result "0-1"]
[ECO "B06"]
[WhiteElo "1237"]
[BlackElo "2223"]
[Annotator "TA"]
[PlyCount "84"]
[EventDate "2024.01.11"]
[EventType "swiss"]
[EventCountry "AZE"]
[SourceTitle "playchess.com"]
[Source "ChessBase"]
[SourceQuality "1"]
[TimeControl "5400+30"]

1. e4 {[%emt 0:00:13]} d6 {[%emt 0:01:22]} 2. d4 {[%emt 0:00:16]} g6 {[%emt 0:00:45]} 3. Nc3 {[%emt 0:03:26]} Bg7 {[%emt 0:01:40]} 4. Be3 {[%emt 0:00:32]} a6 {[%emt 0:00:27]} 5. Nf3 {[%emt 0:00:54]} e6 {[%emt 0:01:39]} 6. Bc4 {[%emt 0:00:49]} Nd7 {[%emt 0:01:11]} 7. O-O {[%emt 0:00:31]} h6 {[%emt 0:00:35]} 8. Qe2 {[%emt 0:01:20]} Ne7 {[%emt 0:00:45]} 9. a3 {[%emt 0:00:57]} O-O {[%emt 0:00:18]} 10. Qd2 {[%emt 0:01:31]} Kh7 {[%emt 0:00:26]} 11. Rab1 {[%emt 0:00:22]} b5 {[%emt 0:00:41]} 12. Bd3 {[%emt 0:00:22]} Bb7 {[%emt 0:00:27]} 13. Ne2 {[%emt 0:00:48]} c5 {[%emt 0:01:50]} 14. c3 {[%emt 0:00:26]} Qc7 {[%emt 0:01:58]} 15. Rbc1 {[%emt 0:00:42]} Nf6 {[%emt 0:02:16]} 16. Ng3 {[%emt 0:03:59]} c4 {[%emt 0:10:17]} 17. Bb1 {[%emt 0:00:31]} e5 {[%emt 0:01:12]} 18. d5 {[%emt 0:01:18]} Nd7 {[%emt 0:00:45]} 19. Nh4 {[%emt 0:05:30]} Nc5 {[%emt 0:01:52]} 20. Bc2 {[%emt 0:00:51]} Bf6 {[%emt 0:01:55]} 21. Nf3 {[%emt 0:00:36]} Ng8 {[%emt 0:00:23]} 22. h4 {[%emt 0:00:25]} Bc8 {[%emt 0:01:22]} 23. h5 {[%emt 0:00:39]} Bg4 {[%emt 0:02:46]} 24. hxg6+ {[%emt 0:00:28]} fxg6 {[%emt 0:00:29]} 25. Nh2 {[%emt 0:01:54]} Bd7 {[%emt 0:02:30]} 26. f3 {[%emt 0:02:16]} Bh4 {[%emt 0:01:16]} 27. Ne2 {[%emt 0:01:39]} Rae8 {[%emt 0:03:16]} 28. g3 {[%emt 0:00:31]} Bd8 {[%emt 0:00:34]} 29. Kg2 {[%emt 0:00:21]} Qc8 {[%emt 0:01:42]} 30. Rh1 {[%emt 0:00:41]} Bh3+ {[%emt 0:02:09]} 31. Kf2 {[%emt 0:00:41]} Bb6 {[%emt 0:01:23]} 32. Ng1 {[%emt 0:02:29]} Nf6 {[%emt 0:01:58]} 33. Ke2 {[%emt 0:01:16]} Bg2 {[%emt 0:00:49]} 34. Bxh6 {[%emt 0:04:53]} Bxh1 {[%emt 0:00:40]} 35. Bxf8 {[%emt 0:00:10]} Rxf8 {[%emt 0:00:18]} 36. Qg5 {[%emt 0:00:26]} Kg7 {[%emt 0:02:51]} 37. Rf1 {[%emt 0:01:50]} Nd3 {[%emt 0:02:18]} 38. Kd2 {[%emt 0:01:28]} Bg2 {[%emt 0:04:16]} 39. Rb1 {[%emt 0:00:09]} Bxf3 {[%emt 0:00:21]} 40. Bxd3 {[%emt 0:02:34]} cxd3 {[%emt 0:00:21]} 41. Re1 {[%emt 0:00:47]} Be2 {[%emt 0:02:15]} 42. Nxe2 {[%emt 0:00:56]} Nxe4+ {[%emt 0:00:30]} 0-1

[Event "Nakhchivan Open 2024"]
[Site "Nakhchivan"]
[Date "2024.01.10"]
[Round "1.4"]
[White "Mamedjarova, Zeinab"]
[Black "Baylarli, Mustafa"]
[Result "1-0"]
[ECO "D71"]
[WhiteElo "2173"]
[BlackElo "1232"]
[Annotator "TA"]
[PlyCount "59"]
[EventDate "2024.01.11"]
[EventType "swiss"]
[EventCountry "AZE"]
[SourceTitle "playchess.com"]
[Source "ChessBase"]
[SourceQuality "1"]
[TimeControl "5400+30"]

{[%evp 12,59,43,25,104,101,114,115,120,111,170,168,175,170,286,284,291,292,303,311,324,298,356,311,382,392,398,398,403,391,398,398,462,452,420,432,504,468,491,499,551,526,515,539,516,515,2388,2333,2306,2138]} 1. d4 {[%emt 0:00:07]} Nf6 {[%emt 0:00:04]} 2. c4 {[%emt 0:00:41]} g6 {[%emt 0:00:11]} 3. g3 {[%emt 0:00:27]} Bg7 {[%emt 0:00:13]} 4. Bg2 {[%emt 0:00:06]} O-O {[%emt 0:00:23]} 5. Nf3 {[%emt 0:01:26]} d6 {[%emt 0:00:33]} 6. O-O {[%emt 0:00:06]} Bf5 {[%emt 0:00:41]} 7. Nc3 {[%emt 0:00:08]} Nbd7 {[%emt 0:00:41] E60: King's Indian: Unusual lines and Fianchetto Variation without Nc3.} (7... c6 $11 {remains equal.}) 8. Nh4 $16 {[%emt 0:01:22][%cal Oh4f5]} c6 {[%emt 0:01:34]} 9. e4 {[%emt 0:00:58] White is more active.} Be6 {[%emt 0:01:18] White is better.} 10. d5 {[%emt 0:00:05]} cxd5 {[%emt 0:00:13]} (10... Bg4 $16 {keeps fighting.} 11. f3 Bh5) 11. cxd5 $18 {[%emt 0:00:05]} Bg4 {[%emt 0:00:48]} 12. f3 {[%emt 0:00:08] [#]} Bxf3 $146 {[%emt 0:01:08]} (12... Bh5 {might work better.} 13. g4 g5 14. gxh5 (14. Bxg5 Qb6+ 15. Rf2 Bg6 $18) 14... gxh4) ({Predecessor:} 12... g5 13. Bxg5 Bh5 14. g4 Bg6 15. Nxg6 fxg6 16. Qc2 Ne5 17. Bxf6 Bxf6 18. g5 Bxg5 19. Bh3 Bf4 20. Be6+ {½-½ Heredia,V (1717)-Koncurat,E (1349) ARG-ch U12 sf 2016 (2.1)}) 13. Nxf3 {[%emt 0:00:10]} Qb6+ {[%emt 0:01:08]} 14. Kh1 {[%emt 0:00:05]} Nc5 {[%emt 0:00:55]} 15. Qe2 {[%emt 0:00:30]} Nfd7 {[%emt 0:01:04]} 16. Be3 {[%emt 0:00:22]} Rac8 {[%emt 0:01:29]} 17. Na4 {[%emt 0:00:24]} Qd8 {[%emt 0:01:37]} 18. Nxc5 {[%emt 0:00:07]} Nxc5 {[%emt 0:00:10]} 19. Bd4 {[%emt 0:00:13]} Bxd4 {[%emt 0:00:49]} 20. Nxd4 {[%emt 0:00:06]} Nd7 {[%emt 0:01:39]} 21. Bh3 {[%emt 0:00:14]} Rc5 {[%emt 0:01:05]} 22. Bxd7 {[%emt 0:02:33]} Qxd7 {[%emt 0:00:11]} 23. Rf4 {[%emt 0:00:11][%cal Bf1f4,Bf4f2,Bf2f8][%mdl 32]} Qa4 {[%emt 0:01:07] White is clearly winning.} 24. Qe3 {[%emt 0:01:20]} Qb4 {[%emt 0:01:34]} 25. Raf1 {[%emt 0:01:30]} Qxb2 {[%emt 0:03:06]} 26. R4f2 {[%emt 0:00:05]} Qc3 {[%emt 0:01:23]} 27. Qxc3 {[%emt 0:00:47]} Rxc3 {[%emt 0:00:09]} 28. Ne6 {[%emt 0:00:04]} fxe6 {[%emt 0:02:55]} (28... f6 $142 29. Nxf8 Kxf8) 29. Rxf8+ {[%emt 0:00:04]} Kg7 {[%emt 0:00:13]} 30. dxe6 {[%emt 0:00:03] Black did not feel at home in the position after the opening.   Weighted Error Value: White=0.05 (flawless) /Black=0.41} 1-0

[Event "Nakhchivan Open 2024"]
[Site "Nakhchivan"]
[Date "2024.01.10"]
[Round "1.5"]
[White "Asgarli, Nagi"]
[Black "Ahmadov, Fariz"]
[Result "0-1"]
[ECO "B07"]
[WhiteElo "1224"]
[BlackElo "2193"]
[Annotator "TA"]
[PlyCount "34"]
[EventDate "2024.01.11"]
[EventType "swiss"]
[EventCountry "AZE"]
[SourceTitle "playchess.com"]
[Source "ChessBase"]
[SourceQuality "1"]
[TimeControl "5400+30"]

1. e4 {[%emt 0:00:05]} Nf6 {[%emt 0:00:06]} 2. Nc3 {[%emt 0:00:38]} d6 {[%emt 0:00:14]} 3. d4 {[%emt 0:02:16]} c6 {[%emt 0:00:09]} 4. h3 {[%emt 0:06:05]} g6 {[%emt 0:00:16]} 5. Nf3 {[%emt 0:00:28]} Bg7 {[%emt 0:00:06]} 6. Be2 {[%emt 0:05:48]} O-O {[%emt 0:00:08]} 7. O-O {[%emt 0:00:07]} Qc7 {[%emt 0:00:31]} 8. Be3 {[%emt 0:01:50]} e5 {[%emt 0:00:28]} 9. dxe5 {[%emt 0:01:14]} dxe5 {[%emt 0:00:01]} 10. Qc1 {[%emt 0:01:42]} b5 {[%emt 0:00:30]} 11. a3 {[%emt 0:01:51]} Nh5 {[%emt 0:00:19][%cal Bf6h5,Bh5f4,Bf4e2][%mdl 32]} 12. Bh6 {[%emt 0:03:06]} Nf4 {[%emt 0:00:14]} 13. Bxg7 {[%emt 0:01:04]} Kxg7 {[%emt 0:00:08]} 14. Qe3 {[%emt 0:01:26]} Qe7 {[%emt 0:02:08]} 15. Rad1 {[%emt 0:01:17]} Nd7 {[%emt 0:01:30]} 16. Na2 {[%emt 0:04:45]} a5 {[%emt 0:06:36]} 17. Qc3 {[%emt 0:00:58]} Nxe2+ {[%emt 0:00:06]} 0-1

[Event "Nakhchivan Open 2024"]
[Site "Nakhchivan"]
[Date "2024.01.10"]
[Round "1.6"]
[White "Israilov, Agil"]
[Black "Sevdimali, Erjan"]
[Result "1-0"]
[ECO "B40"]
[WhiteElo "2114"]
[BlackElo "1211"]
[Annotator "TA"]
[PlyCount "49"]
[EventDate "2024.01.11"]
[EventType "swiss"]
[EventCountry "AZE"]
[SourceTitle "playchess.com"]
[Source "ChessBase"]
[SourceQuality "1"]
[TimeControl "5400+30"]

{[%evp 14,49,51,18,172,156,214,208,214,203,218,165,181,180,285,284,281,287,255,252,507,502,1171,1159,1142,1131,1119,1108,1427,1418,1227,1206,2209,2149,1940,1915,1920,1801]} 1. e4 {[%emt 0:00:02]} c5 {[%emt 0:00:07]} 2. Nf3 {[%emt 0:00:05]} e6 {[%emt 0:00:06]} 3. d4 {[%emt 0:00:05]} cxd4 {[%emt 0:00:13]} 4. Nxd4 {[%emt 0:00:07]} Nf6 {[%emt 0:00:29]} 5. Nc3 {[%emt 0:00:07]} Bb4 {[%emt 0:00:29]} 6. Bd3 {[%emt 0:04:02]} Nc6 {[%emt 0:01:49]} 7. Nxc6 {[%emt 0:00:22]} bxc6 {[%emt 0:00:09] 7...bxc6 scores better than 7...dxc6.} 8. O-O {[%emt 0:00:06]} (8. e5 $5 {[%cal Re5f6]} Nd5 9. Qg4 $14) 8... h6 $2 {[%emt 0:00:44] [#] B40: Sicilian: 2...e6, Unusual lines.} (8... e5 $11) 9. e5 $1 $18 {[%emt 0:00:27]} Bxc3 {[%emt 0:00:38]} (9... Nd5 $16 {is a better defense.}) 10. bxc3 {[%emt 0:00:06]} Nd5 {[%emt 0:00:07] White is clearly better.} 11. Qg4 {[%emt 0:00:06]} g5 {[%emt 0:20:13] [#]} 12. f4 $146 {[%emt 0:05:05][%cal Bf2f4,Bf4g5,Bg5h6][%mdl 32]} ({Predecessor:} 12. c4 Nf4 13. Bxf4 gxf4 14. Qg7 Rf8 15. Qxh6 f3 16. g3 Ba6 17. Qf4 Qa5 18. Rfe1 {1-0 Nagy,K (2086)-Nemeth,J (2068) HUN-chT2 Szechenyi 1415 2014 (6.4)}) 12... Qb6+ {[%emt 0:14:16]} 13. Kh1 {[%emt 0:00:06]} Ne3 {[%emt 0:00:59]} (13... Ba6 {might work better.} 14. fxg5 Bxd3 15. cxd3 hxg5) 14. Bxe3 {[%emt 0:00:06]} Qxe3 {[%emt 0:00:05]} 15. Rae1 {[%emt 0:00:14]} Qc5 {[%emt 0:01:39]} 16. fxg5 {[%emt 0:00:11]} Rg8 {[%emt 0:00:36] Black is weak on the light squares} (16... hxg5 17. Rxf7 Ba6 18. Qxg5 Bxd3 19. cxd3 Kxf7 20. Qf6+ Ke8 21. Qxh8+ Qf8 22. Qxf8+ Kxf8) 17. Qh5 {[%emt 0:01:07] White is clearly winning.} Qe7 {[%emt 0:00:22]} (17... Rxg5 $142 18. Qxh6 (18. Qxf7+ Kd8 $18) 18... Qe7 19. Rxf7 Qxf7) 18. gxh6 {[%emt 0:00:10] [#] Hoping for h7.} Qg5 {[%emt 0:00:50]} 19. Qxf7+ {[%emt 0:00:07]} Kd8 20. Qf6+ {[%emt 0:01:03]} Kc7 {[%emt 0:01:35]} 21. Qxg5 {[%emt 0:00:49]} Rxg5 {[%emt 0:00:06]} 22. Rf8 {[%emt 0:00:11]} Bb7 {[%emt 0:00:34]} 23. Rxa8 {[%emt 0:00:06] Black must now prevent h7.} Bxa8 {[%emt 0:00:12]} 24. h7 {[%emt 0:00:14]} Rh5 {[%emt 0:00:25]} 25. Rf1 {[%emt 0:00:04] Black got outplayed after the opening.   Weighted Error Value: White=0.09 (flawless) /Black=0.89} 1-0

[Event "Nakhchivan Open 2024"]
[Site "Nakhchivan"]
[Date "2024.01.11"]
[Round "2.1"]
[White "Gasimov, Parviz"]
[Black "Ganbarli, Huseyn"]
[Result "1-0"]
[ECO "C65"]
[WhiteElo "2362"]
[BlackElo "1582"]
[Annotator "RC"]
[PlyCount "57"]
[EventDate "2024.01.11"]
[EventType "swiss"]
[EventCountry "AZE"]
[SourceTitle "playchess.com"]
[Source "ChessBase"]
[SourceQuality "1"]
[TimeControl "5400+30"]

1. e4 {[%emt 0:00:13]} e5 {[%emt 0:01:22]} 2. Nf3 {[%emt 0:00:30]} Nc6 {[%emt 0:00:02]} 3. Bb5 {[%emt 0:01:26]} Nf6 {[%emt 0:00:10]} 4. d3 {[%emt 0:00:51]} a6 {[%emt 0:00:08]} 5. Bxc6 {[%emt 0:04:45]} dxc6 {[%emt 0:01:05]} 6. Nxe5 {[%emt 0:00:39]} Bd6 {[%emt 0:00:02]} 7. Nf3 {[%emt 0:11:41]} O-O {[%emt 0:00:14]} 8. h3 {[%emt 0:02:45]} h6 {[%emt 0:00:26]} 9. O-O {[%emt 0:01:59]} Re8 {[%emt 0:00:11]} 10. Re1 {[%emt 0:00:14]} Bc5 {[%emt 0:06:03]} 11. Nc3 {[%emt 0:11:03]} Be6 {[%emt 0:01:58]} 12. Be3 {[%emt 0:02:45]} Bxe3 {[%emt 0:05:29]} 13. Rxe3 {[%emt 0:00:08]} Qc8 {[%emt 0:00:26]} 14. Qd2 {[%emt 0:01:24]} b5 {[%emt 0:04:45]} 15. Rae1 {[%emt 0:00:44]} a5 {[%emt 0:01:53]} 16. Nd4 {[%emt 0:02:47]} a4 {[%emt 0:05:07]} 17. a3 {[%emt 0:01:44]} Qb7 {[%emt 0:01:16]} 18. e5 {[%emt 0:05:07]} Nd5 {[%emt 0:00:17]} 19. Rg3 {[%emt 0:00:13]} Kh7 {[%emt 0:01:00]} 20. Ne4 {[%emt 0:06:20]} Rad8 {[%emt 0:05:06]} 21. Nc5 {[%emt 0:01:24]} Qb6 {[%emt 0:00:40]} 22. Ndxe6 {[%emt 0:00:20]} fxe6 {[%emt 0:00:23]} 23. d4 {[%emt 0:00:04]} b4 {[%emt 0:02:38]} 24. Qd3+ {[%emt 0:00:08]} Kh8 {[%emt 0:00:47]} 25. Qg6 {[%emt 0:00:27]} Re7 {[%emt 0:03:42]} 26. Nxe6 {[%emt 0:00:52]} Rg8 {[%emt 0:00:04]} 27. Ng5 {[%emt 0:00:18]} Nf6 {[%emt 0:00:40]} 28. exf6 {[%emt 0:01:04]} Rxe1+ {[%emt 0:00:47]} 29. Kh2 {[%emt 0:00:05]} 1-0

[Event "Nakhchivan Open 2024"]
[Site "Nakhchivan"]
[Date "2024.01.11"]
[Round "2.2"]
[White "Mustafayev, Sabuhi"]
[Black "Hasanzade, Toghrul"]
[Result "0-1"]
[ECO "A16"]
[WhiteElo "1599"]
[BlackElo "2329"]
[Annotator "RC"]
[PlyCount "54"]
[EventDate "2024.01.11"]
[EventType "swiss"]
[EventCountry "AZE"]
[SourceTitle "playchess.com"]
[Source "ChessBase"]
[SourceQuality "1"]
[TimeControl "5400+30"]

1. c4 {[%emt 1:31:00]} Nf6 {[%emt 1:31:00]} 2. Nc3 {[%emt 0:00:00]} d5 {[%emt 0:00:00]} 3. cxd5 {[%emt 0:00:00]} Nxd5 {[%emt 0:00:00]} 4. g3 {[%emt 0:00:00]} g6 {[%emt 0:00:00]} 5. Bg2 {[%emt 0:00:00]} Nxc3 {[%emt 0:00:00]} 6. bxc3 {[%emt 0:00:00]} Bg7 {[%emt 0:00:00]} 7. Rb1 {[%emt 0:00:00]} Nc6 {[%emt 0:00:00]} 8. Qa4 {[%emt 0:00:00]} O-O {[%emt 0:00:00]} 9. Bxc6 {[%emt 0:00:00]} bxc6 {[%emt 0:00:00]} 10. Qxc6 {[%emt 0:00:00]} Be6 {[%emt 0:00:00]} 11. Qa4 {[%emt 0:00:00]} Qd5 {[%emt 0:00:00]} 12. Nf3 {[%emt 0:00:00]} Bh3 {[%emt 0:00:00]} 13. c4 {[%emt 0:00:00]} Qh5 {[%emt 0:00:00]} 14. Qb5 {[%emt 0:00:00]} e5 {[%emt 0:00:00]} 15. Ba3 {[%emt 0:00:00]} Rfe8 {[%emt 0:00:00]} 16. Rg1 {[%emt 0:00:00]} Bg4 {[%emt 0:00:00]} 17. h4 {[%emt 0:00:00]} Bxf3 {[%emt 0:00:00]} 18. exf3 {[%emt 0:00:00]} Qxf3 {[%emt 0:00:00]} 19. Rb3 {[%emt 0:00:00]} Qg4 {[%emt 0:00:00]} 20. Qb7 {[%emt 0:00:00]} Qxc4 {[%emt 0:00:00]} 21. Qb5 {[%emt 0:00:00]} Qc2 {[%emt 0:00:00]} 22. Ke2 {[%emt 0:00:00]} Red8 {[%emt 0:00:00]} 23. Rd3 {[%emt 0:00:00]} e4 {[%emt 0:00:00]} 24. Rd7 {[%emt 0:00:00]} Rxd7 {[%emt 0:00:00]} 25. Qxd7 {[%emt 0:00:00]} Qc4+ {[%emt 0:00:00]} 26. Ke3 {[%emt 0:00:00]} Qxa2 {[%emt 0:00:00]} 27. Bb4 {[%emt 0:00:00]} Qb3+ 0-1

[Event "Nakhchivan Open 2024"]
[Site "Nakhchivan"]
[Date "2024.01.11"]
[Round "2.3"]
[White "Kul, Ozdemir Efe"]
[Black "Khalilov, Yunis"]
[Result "1-0"]
[ECO "A10"]
[WhiteElo "2223"]
[BlackElo "1562"]
[Annotator "TA"]
[PlyCount "37"]
[EventDate "2024.01.11"]
[EventType "swiss"]
[EventCountry "AZE"]
[SourceTitle "playchess.com"]
[Source "ChessBase"]
[SourceQuality "1"]
[TimeControl "5400+30"]

{[%evp 14,37,60,59,67,72,102,102,105,96,117,100,189,185,184,177,247,216,207,214,658,664,874,875,1496,1458]} 1. c4 {[%emt 0:00:26]} f5 {[%emt 0:00:13]} 2. Nf3 {[%emt 0:00:34]} Nf6 {[%emt 0:00:43]} 3. g3 {[%emt 0:00:20]} e6 {[%emt 0:00:22]} 4. Bg2 {[%emt 0:00:11]} d5 {[%emt 0:01:36]} 5. O-O {[%emt 0:01:25]} Bd6 {[%emt 0:02:38]} 6. Nc3 {[%emt 0:00:53]} c6 {[%emt 0:00:47]} 7. d3 {[%emt 0:03:49]} O-O {[%emt 0:02:13] [#]} 8. e4 $1 {[%emt 0:00:44]} fxe4 {[%emt 0:04:53]} (8... dxe4 9. dxe4) 9. dxe4 {[%emt 0:00:12]} Bb4 {[%emt 0:03:31]} 10. exd5 {[%emt 0:05:35]} exd5 {[%emt 0:03:24] White is better.} 11. cxd5 {[%emt 0:03:12]} Bxc3 {[%emt 0:06:43]} 12. bxc3 {[%emt 0:00:17]} Nxd5 {[%emt 0:01:13]} (12... cxd5 $16 13. Qd3 Nc6) 13. Ba3 {[%emt 0:06:54]} Re8 {[%emt 0:07:17]} 14. Qb3 {[%emt 0:08:02] Hoping for Rad1.} Qb6 {[%emt 0:08:04]} (14... Nd7 {is a better defense.} 15. Rfe1 a5 16. Rxe8+ Qxe8) 15. Rfe1 {[%emt 0:00:56]} Be6 {[%emt 0:06:40]} 16. Qc2 {[%emt 0:13:48]} Nf6 $2 {[%emt 0:05:47]} (16... Qd8 17. c4 Nb6) 17. Ng5 $18 {[%emt 0:02:50] White is clearly winning.} Bf7 {[%emt 0:04:40]} 18. Nxf7 {[%emt 0:03:17] [#] Threatening mate with Rxe8+.} Kxf7 {[%emt 0:06:14]} 19. Rxe8 {[%emt 0:00:51] Black got outplayed after the opening.   Weighted Error Value: White=0.07 (flawless) /Black=0.75.  Mistake:       	---       	Black=3      Inaccurate:     	---       	Black=2      OK:         	White=2     	Black=2      Best:        	White=1     	---} 1-0